fUSD/lending_fUSD_20260226
["ID","MTS","AMOUNT","RATE_DAILY","PERIOD"]
[406689372,1772081445697,-151.000001,0.00016438,2]
[406689373,1772081445706,-156.494645,0.00016438,2]
[406689374,1772081445715,-1190.62156941,0.00016438,2]
[406689375,1772081445725,-3007.20418576,0.00016438,2]
[406689376,1772081445734,-1281.0,0.00016439,2]
[406689377,1772081445743,-500.0,0.00016493,2]
[406689378,1772081445752,-500.0,0.00016548,2]
[406689379,1772081445762,-502.0,0.0001656,3]
[406689380,1772081445771,-150.0,0.000166,2]
[406689381,1772081445780,-500.0,0.00016602,2]
[406689382,1772081445791,-500.0,0.00016657,2]
[406689383,1772081445800,-1000.0,0.0001667,2]
[406689384,1772081445810,-2645.20315051,0.000167,2]
[406689385,1772081445819,-500.0,0.00016712,2]
[406689386,1772081445828,-694.9,0.00016712,2]
[406689387,1772081445838,-660.995,0.00016712,2]
[406689388,1772081445847,-167.07,0.00016712,2]
[406689389,1772081445856,-160.0,0.0001672,2]
[406689390,1772081445866,-845.0,0.0001672,2]
[406689391,1772081445875,-500.0,0.00016767,2]
[406689392,1772081445885,-500.0,0.00016822,2]
[406689393,1772081445894,-4734.69605761,0.00016828,2]
[406689394,1772081445903,-500.0,0.00016876,2]
[406689395,1772081445912,-500.0,0.00016931,2]
[406689396,1772081445922,-500.0,0.00016986,2]
[406689397,1772081445932,-694.9,0.00016986,2]
[406689398,1772081445941,-300.0,0.00017,2]
[406689399,1772081445950,-2844.0,0.0001704,2]
[406689400,1772081445960,-857.0,0.0001704,2]
[406689401,1772081445970,-317.29319668,0.00017041,2]
[406689402,1772081445979,-1000.0,0.00017058,2]
[406689403,1772081445988,-16763.78467328,0.00017067,2]
[406689404,1772081445998,-4239.12817154,0.00017067,2]
[406689405,1772081446007,-261.864285,0.0001722,7]
[406689406,1772081446016,-175.036731,0.0001722,7]
[406689407,1772081446025,-694.9,0.0001726,2]
[406689408,1772081446035,-456.0,0.0001727,2]
[406689409,1772081446044,-156.0,0.0001727,2]
[406689410,1772081446054,-600.0,0.00017452,7]
[406689411,1772081446063,-1149.05853338,0.00017532,2]
[406689412,1772081446073,-1540.22928113,0.00017532,2]
[406689413,1772081446082,-694.9,0.00017534,2]
[406689414,1772081446093,-176.0,0.000176,2]
[406689415,1772081446102,-330.36078572,0.00017615,2]
[406689416,1772081446112,-500.0,0.00017616,2]
[406689417,1772081446121,-301.2894,0.00017616,2]
[406689418,1772081446130,-500.0,0.00017616,2]
[406689419,1772081446139,-500.0,0.00017616,2]
[406689420,1772081446149,-500.0,0.00017616,2]
[406689421,1772081446158,-500.0,0.00017616,2]
[406689422,1772081446172,-500.0,0.00017616,2]
[406689423,1772081446182,-500.0,0.00017616,2]
[406689424,1772081446192,-500.0,0.00017616,2]
[406689425,1772081446201,-500.0,0.00017616,2]
[406689426,1772081446212,-500.0,0.00017616,2]
[406689427,1772081446221,-500.0,0.00017616,2]
[406689428,1772081446230,-500.0,0.00017616,2]
[406689429,1772081446240,-500.0,0.00017616,2]
[406689430,1772081446248,-500.0,0.00017616,2]
[406689431,1772081446257,-500.0,0.00017616,2]
[406689432,1772081446266,-500.0,0.00017616,2]
[406689433,1772081446275,-500.0,0.00017616,2]
[406689434,1772081446285,-500.0,0.00017616,2]
[406689435,1772081446294,-500.0,0.00017616,2]
[406689436,1772081446303,-500.0,0.00017616,2]
[406689437,1772081446311,-500.0,0.00017616,2]
[406689438,1772081446320,-500.0,0.00017616,2]
[406689439,1772081446329,-500.0,0.00017616,2]
[406689440,1772081446338,-500.0,0.00017616,2]
[406689441,1772081446347,-500.0,0.00017616,2]
[406689442,1772081446356,-500.0,0.00017616,2]
[406689443,1772081446365,-500.0,0.00017616,2]
[406689444,1772081446374,-500.0,0.00017616,2]
[406689445,1772081446383,-500.0,0.00017616,2]
[406689446,1772081446392,-500.0,0.00017616,2]
[406689447,1772081446402,-500.0,0.00017616,2]
[406689448,1772081446411,-500.0,0.00017616,2]
[406689449,1772081446420,-500.0,0.00017616,2]
[406689450,1772081446429,-500.0,0.00017616,2]
[406689451,1772081446438,-500.0,0.00017616,2]
[406689452,1772081446447,-500.0,0.00017616,2]
[406689453,1772081446458,-500.0,0.00017616,2]
[406689454,1772081446467,-500.0,0.00017616,2]
[406689455,1772081446475,-500.0,0.00017616,2]
[406689456,1772081446484,-500.0,0.00017616,2]
[406689457,1772081446494,-500.0,0.00017616,2]
[406689458,1772081446503,-500.0,0.00017616,2]
[406689459,1772081446512,-500.0,0.00017616,2]
[406689460,1772081446617,-500.0,0.00017616,2]
[406689461,1772081446627,-500.0,0.00017616,2]
[406689462,1772081446637,-500.0,0.00017616,2]
[406689463,1772081446646,-500.0,0.00017616,2]
[406689464,1772081446656,-500.0,0.00017616,2]
[406689465,1772081446665,-500.0,0.00017616,2]
[406689466,1772081446675,-500.0,0.00017616,2]
[406689467,1772081446684,-500.0,0.00017616,2]
[406689468,1772081446693,-500.0,0.00017616,2]
[406689469,1772081446702,-500.0,0.00017616,2]
[406689470,1772081446712,-500.0,0.00017616,2]
[406689471,1772081446722,-500.0,0.00017616,2]
[406689472,1772081446732,-213.1171,0.00017616,2]
[406689473,1772081446741,-500.0,0.00017616,2]
[406689474,1772081446751,-500.0,0.00017616,2]
[406689475,1772081446760,-500.0,0.00017616,2]
[406689476,1772081446769,-500.0,0.00017616,2]
[406689477,1772081446779,-500.0,0.00017616,2]
[406689478,1772081446789,-500.0,0.00017616,2]
[406689479,1772081446798,-500.0,0.00017616,2]
[406689480,1772081446807,-500.0,0.00017616,2]
[406689481,1772081446816,-500.0,0.00017616,2]
[406689482,1772081446825,-500.0,0.00017616,2]
[406689483,1772081446834,-500.0,0.00017616,2]
[406689484,1772081446843,-500.0,0.00017616,2]
[406689485,1772081446852,-500.0,0.00017616,2]
[406689486,1772081446862,-500.0,0.00017616,2]
[406689487,1772081446871,-500.0,0.00017616,2]
[406689488,1772081446881,-500.0,0.00017616,2]
[406689489,1772081446890,-500.0,0.00017616,2]
[406689491,1772081446899,-500.0,0.00017616,2]
[406689492,1772081446909,-500.0,0.00017616,2]
[406689493,1772081446918,-500.0,0.00017616,2]
[406689494,1772081446927,-500.0,0.00017616,2]
[406689495,1772081446936,-500.0,0.00017616,2]
[406689496,1772081446946,-500.0,0.00017616,2]
[406689497,1772081446955,-500.0,0.00017616,2]
[406689498,1772081446964,-500.0,0.00017616,2]
[406689499,1772081446973,-1163.0674932,0.0001764,2]
[406689500,1772081446983,-845.0,0.0001768,2]
[406689501,1772081446992,-1212.9911302,0.0001768,2]
[406689709,1772082631726,-500.0,6.873e-05,2]
[406689711,1772082631736,-209.0,6.873e-05,2]
[406689713,1772082631746,-196.49547409,7.162e-05,2]
[406689715,1772082631781,-19.42452591,7.162e-05,2]
[406689716,1772082631791,-229.35,7.4e-05,2]
[406689717,1772082631800,-1000.0,7.421e-05,2]
[406689718,1772082631810,-251.22547409,7.56e-05,2]
[406689719,1772082631837,-522.43217768,7.56e-05,2]
[406689720,1772082631847,-166.62464388,7.56e-05,2]
[406689721,1772082631894,-83.37535612,7.56e-05,2]
[406689722,1772082631903,-152.89,7.8e-05,2]
[406689723,1772082631914,-1500.0,7.968e-05,2]
[406689724,1772082631924,-1861.00409001,8.451e-05,2]
[406689725,1772082631933,-300.0,8.514e-05,2]
[406689726,1772082631943,-300.0,8.514e-05,2]
[406689727,1772082631952,-1200.0,8.514e-05,2]
[406689729,1772082631961,-300.0,8.514e-05,2]
[406689730,1772082631971,-300.0,8.515e-05,2]
[406689732,1772082631980,-2000.0,8.516e-05,2]
[406689734,1772082631989,-500.0,8.594e-05,2]
[406689735,1772082631998,-1000.0,8.777e-05,2]
[406689737,1772082632007,-427.0,8.877e-05,2]
[406689739,1772082632017,-840.34,8.953e-05,2]
[406689740,1772082632026,-1466.1264312,9.064e-05,2]
[406689742,1772082632035,-250.0,9.081e-05,2]
[406689743,1772082632045,-1680.0,9.365e-05,2]
[406689745,1772082632057,-300.0,9.367e-05,2]
[406689747,1772082632067,-500.0,9.522e-05,2]
[406689748,1772082632077,-205.0,9.8e-05,2]
[406689750,1772082632090,-1000.0,9.874e-05,2]
[406689752,1772082632100,-195.11,9.936e-05,2]
[406689754,1772082632110,-1600.0,9.974e-05,2]
[406689755,1772082632119,-150.0,0.00010095,2]
[406689757,1772082632129,-1889.43082181,0.00010096,2]
[406689758,1772082632138,-2500.0,0.00010096,2]
[406689760,1772082632148,-439352.2675,0.00010096,2]
[406689761,1772082632157,-4133.1798,0.00010096,2]
[406689762,1772082632166,-53929.50172241,0.00010096,2]
[406689763,1772082632179,-35606.17557759,0.00010096,2]
[406689764,1772082632188,-3569.21008894,0.00010186,2]
[406689765,1772082632198,-183.22233806,0.00010186,2]
[406689766,1772082632207,-500.0,0.00010195,2]
[406689767,1772082632217,-500.0,0.00010195,2]
[406689768,1772082632226,-500.0,0.00010195,2]
[406689769,1772082632235,-500.0,0.00010195,2]
[406689770,1772082632244,-500.0,0.00010195,2]
[406689771,1772082632254,-500.0,0.00010195,2]
[406689772,1772082632263,-500.0,0.00010195,2]
[406689773,1772082632273,-488.88103758,0.00010195,2]
[406689774,1772082632283,-500.0,0.00010195,2]
[406689775,1772082632292,-500.0,0.00010195,2]
[406689776,1772082632303,-500.0,0.00010195,2]
[406689777,1772082632312,-500.0,0.00010195,2]
[406689778,1772082632322,-43.22852128,0.00010195,2]
[406689779,1772082632333,-456.77147872,0.00010195,2]
[406689780,1772082632343,-500.0,0.00010195,2]
[406689781,1772082632352,-500.0,0.00010195,2]
[406689782,1772082632361,-355.10118548,0.00010195,2]
[406689783,1772082632370,-500.0,0.00010195,2]
[406689784,1772082632379,-500.0,0.00010195,2]
[406689785,1772082632389,-500.0,0.00010195,2]
[406689786,1772082632398,-500.0,0.00010195,2]
[406689787,1772082632407,-500.0,0.00010195,2]
[406689788,1772082632416,-500.0,0.00010195,2]
[406689789,1772082632425,-500.0,0.00010195,2]
[406689790,1772082632435,-500.0,0.00010195,2]
[406689791,1772082632444,-500.0,0.00010195,2]
[406689792,1772082632453,-500.0,0.00010195,2]
[406689793,1772082632462,-500.0,0.00010195,2]
[406689794,1772082632471,-500.0,0.00010195,2]
[406689795,1772082632481,-500.0,0.00010195,2]
[406689796,1772082632491,-500.0,0.00010195,2]
[406689797,1772082632500,-586.11475518,0.00010195,2]
[406689798,1772082632509,-500.0,0.00010195,2]
[406689799,1772082632519,-500.0,0.00010195,2]
[406689800,1772082632532,-500.0,0.00010195,2]
[406689801,1772082632541,-540.12750576,0.00010195,2]
[406689802,1772082632551,-7.02903596,0.00010195,2]
[406689803,1772082632564,-533.0984698,0.00010195,2]
[406689804,1772082632574,-540.12750576,0.00010195,2]
[406689805,1772082632584,-540.12750576,0.00010195,2]
[406689806,1772082632595,-540.12750576,0.00010195,2]
[406689807,1772082632605,-500.0,0.00010195,2]
[406689808,1772082632614,-580.25501152,0.00010195,2]
[406689809,1772082632623,-540.12750576,0.00010195,2]
[406689810,1772082632633,-540.12750576,0.00010195,2]
[406689811,1772082632642,-540.12750576,0.00010195,2]
[406689812,1772082632652,-540.12750576,0.00010195,2]
[406689813,1772082632662,-540.12750576,0.00010195,2]
[406689814,1772082632671,-500.0,0.00010195,2]
[406689815,1772082632680,-500.0,0.00010195,2]
[406689816,1772082632690,-500.0,0.00010195,2]
[406689817,1772082632700,-444.45902074,0.00010195,2]
[406689818,1772082632709,-500.0,0.00010195,2]
[406689819,1772082632718,-500.0,0.00010195,2]
[406689820,1772082632728,-33920.27234512,0.00010196,2]
[406689821,1772082632739,-15596.33778609,0.00010196,2]
[406689823,1772082637818,-1550.46524649,0.00010196,2]
[406689824,1772082637834,-4852.39229244,0.00010196,2]
[406689825,1772082637871,-667.65520624,0.00010196,2]
[406689826,1772082637983,-534514.07268588,0.00010196,2]
[406689923,1772082640153,-1408898.80443774,0.00010196,2]
[406689924,1772082640163,-500.0,0.00010196,2]
[406689925,1772082640173,-12960.19182486,0.00010285,2]
[406689926,1772082640182,-151.0,0.0001029,2]
[406689927,1772082640192,-151.0,0.0001029,2]
[406689928,1772082640201,-151.0,0.0001029,2]
[406689929,1772082640211,-151.0,0.0001029,2]
[406689930,1772082640221,-151.0,0.0001029,2]
[406689931,1772082640233,-151.0,0.0001029,2]
[406689932,1772082640243,-151.0,0.0001029,2]
[406689933,1772082640253,-151.0,0.0001029,2]
[406689934,1772082640263,-151.0,0.0001029,2]
[406689935,1772082640273,-151.0,0.0001029,2]
[406689936,1772082640283,-151.0,0.0001029,2]
[406689937,1772082640293,-153.4251829,0.0001029,2]
[406689938,1772082640302,-500.0,0.0001029,2]
[406689939,1772082640311,-500.0,0.0001029,2]
[406689940,1772082640321,-500.0,0.0001029,2]
[406689941,1772082640330,-151.0,0.0001029,2]
[406689942,1772082640339,-151.0,0.0001029,2]
[406689943,1772082640349,-151.0,0.0001029,2]
[406689944,1772082640359,-151.0,0.0001029,2]
[406689945,1772082640368,-151.0,0.0001029,2]
[406689946,1772082640377,-172.22478143,0.0001029,2]
[406689947,1772082640387,-560.00788289,0.00010295,2]
[406689948,1772082640396,-310.32233459,0.00010295,2]
[406689949,1772082640406,-500.0,0.00010295,2]
[406689950,1772082640416,-327.56225813,0.00010295,2]
[406689951,1772082640426,-500.0,0.00010295,2]
[406689952,1772082640435,-500.0,0.00010295,2]
[406689953,1772082640445,-500.0,0.00010295,2]
[406689954,1772082640454,-500.0,0.00010295,2]
[406689955,1772082640463,-500.0,0.00010295,2]
[406689956,1772082640472,-500.0,0.00010295,2]
[406689957,1772082640482,-32883.6844,0.00010296,2]
[406689958,1772082640491,-936.55904936,0.00010298,2]
[406689959,1772082640500,-500.0,0.000103,2]
[406689960,1772082640510,-500.0,0.000103,2]
[406689961,1772082640520,-515.09383157,0.000103,2]
[406689962,1772082640533,-587.30475258,0.000103,2]
[406689963,1772082640543,-500.0,0.000103,2]
[406689964,1772082640552,-500.0,0.000103,2]
[406689965,1772082640563,-500.0,0.000103,2]
[406689966,1772082640573,-500.0,0.000103,2]
[406689967,1772082640582,-500.0,0.000103,2]
[406689968,1772082640592,-500.0,0.000103,2]
[406689969,1772082640602,-500.0,0.000103,2]
[406689970,1772082640612,-500.0,0.000103,2]
[406689971,1772082640622,-500.0,0.000103,2]
[406689972,1772082640631,-500.0,0.000103,2]
[406689973,1772082640640,-500.0,0.000103,2]
[406689974,1772082640650,-500.0,0.000103,2]
[406689975,1772082640659,-700.0,0.000103,2]
[406689976,1772082640669,-875.18008905,0.000103,2]
[406689977,1772082640679,-505.12056709,0.000103,2]
[406689978,1772082640688,-500.0,0.000103,2]
[406689979,1772082640697,-500.0,0.000103,2]
[406689980,1772082640707,-500.0,0.000103,2]
[406689981,1772082640717,-643.7180745,0.000103,2]
[406689982,1772082640726,-500.0,0.000103,2]
[406689983,1772082640736,-500.0,0.000103,2]
[406689984,1772082640745,-500.0,0.000103,2]
[406689985,1772082640754,-500.0,0.000103,2]
[406689986,1772082640763,-500.0,0.000103,2]
[406689987,1772082640773,-500.0,0.000103,2]
[406689988,1772082640782,-517.12383416,0.000103,2]
[406689989,1772082640792,-500.0,0.000103,2]
[406689990,1772082640802,-583.2835128,0.000103,2]
[406689991,1772082640813,-500.0,0.000103,2]
[406689992,1772082640822,-500.0,0.000103,2]
[406689993,1772082640832,-2351.0,0.00010302,2]
[406689994,1772082640842,-151.0,0.00010373,2]
[406689995,1772082640851,-175337.43747175,0.00010373,2]
[406689996,1772082640861,-231.741238,0.00010385,2]
[406689997,1772082640870,-231.741238,0.00010385,2]
[406689998,1772082640879,-231.741238,0.00010385,2]
[406689999,1772082640889,-231.741238,0.00010385,2]
[406690000,1772082640898,-12074.8,0.00010385,2]
[406690001,1772082640907,-435.386986,0.00010396,2]
[406690002,1772082640916,-435.386986,0.00010396,2]
[406690003,1772082640926,-435.386986,0.00010396,2]
[406690004,1772082640936,-435.386986,0.00010396,2]
[406690005,1772082640947,-1000.0,0.00010398,2]
[406690006,1772082640956,-503.15080927,0.0001047,2]
[406690007,1772082640965,-215.92,0.00010744,2]
[406690008,1772082640974,-500.0,0.00010818,2]
[406690009,1772082640983,-23740.0,0.000109,2]
[406690010,1772082640993,-4142.85905041,0.000109,2]
[406690011,1772082641001,-4530.52993335,0.00010937,2]
[406690012,1772082641015,-3643.09,0.00010959,2]
[406690013,1772082641024,-153.208343,0.00010959,2]
[406690014,1772082641033,-1000.0,0.00010971,2]
[406690015,1772082641043,-3560.36144028,0.00011099,2]
[406690016,1772082641052,-3560.36144025,0.00011099,2]
[406690017,1772082641062,-255.0,0.00011105,2]
[406690018,1772082641071,-4142.85905041,0.00011125,2]
[406690019,1772082641081,-5531.0,0.000112,3]
[406690020,1772082641091,-1600.0,0.0001122,2]
[406690021,1772082641101,-5771.18,0.00011233,2]
[406690022,1772082641111,-4334.95950556,0.00011297,2]
[406690023,1772082641120,-3292.0,0.00011332,2]
[406690024,1772082641130,-1889.43082179,0.00011397,2]
[406690025,1772082641140,-5531.0,0.000115,5]
[406690026,1772082641149,-150.0,0.00011528,7]
[406690027,1772082641159,-152.0,0.00011673,3]
[406690028,1772082641169,-3560.36144025,0.0001183,2]
[406690029,1772082641178,-152.0,0.00011847,4]
[406690030,1772082641188,-152.0,0.00012022,5]
[406690031,1772082641198,-1000.0,0.00012068,2]
[406690032,1772082641208,-9999.99,0.00012087,2]
[406690033,1772082641218,-299.99,0.00012087,2]
[406690034,1772082641228,-5708.21444897,0.00012087,2]
[406690055,1772082776743,-150.0,0.00012892,10]
[406690056,1772082807677,-150.0,0.00012718,9]
[406690057,1772082873287,-150.0,0.00014285,18]
[406690058,1772082967043,2487.24,9e-05,10]
[406690059,1772083004441,-150.0,0.00013588,14]
[406690060,1772083016994,358.89,5.746e-05,2]
[406690061,1772083017222,358.89,5.994e-05,2]
[406690062,1772083017454,358.89,6.241e-05,2]
[406690063,1772083017675,358.89,6.489e-05,2]
[406690065,1772083355165,-175.0,0.00046112,120]
[406690073,1772083803681,600.0,7.409e-05,7]
[406690086,1772083832179,-150.0,0.00046117,120]
[406690087,1772083832196,-364.72373208,6.736e-05,2]
[406690089,1772083832219,-235.27626792,6.736e-05,2]
[406690091,1772083832229,-208.0,6.736e-05,2]
[406690093,1772083832238,-5064.13285656,6.736e-05,2]
[406690095,1772083832248,-358.89,6.736e-05,2]
[406690097,1772083832257,-200.0,6.778e-05,2]
[406690099,1772083832267,-300.0,6.872e-05,2]
[406690101,1772083832276,-1200.0,6.872e-05,2]
[406690103,1772083832286,-300.0,6.872e-05,2]
[406690105,1772083832295,-300.0,6.872e-05,2]
[406690107,1772083832305,-500.53906536,6.873e-05,2]
[406690109,1772083832315,-501.85175183,6.873e-05,2]
[406690111,1772083832325,-500.72325527,6.873e-05,2]
[406690113,1772083832335,-503.91435159,6.873e-05,2]
[406690115,1772083832344,-200.09788063,6.873e-05,2]
[406690117,1772083832353,-500.28462042,6.873e-05,2]
[406690119,1772083832363,-358.89,6.984e-05,2]
[406690121,1772083832372,-358.89,7.231e-05,2]
[406690123,1772083832381,-250.0,7.41e-05,2]
[406690125,1772083832391,-250.0,7.41e-05,2]
[406690127,1772083832400,-5000.0,7.41e-05,2]
[406690129,1772083832409,-250.0,7.41e-05,2]
[406690131,1772083832419,-358.89,7.479e-05,2]
[406690133,1772083832428,-1680.0,7.559e-05,2]
[406690134,1772083832438,-575.0,7.694e-05,2]
[406690135,1772083832447,-462.0,7.694e-05,2]
[406690136,1772083832457,-1124.0,7.71e-05,2]
[406690137,1772083832467,-358.89,7.726e-05,2]
[406690138,1772083832477,-625.0,7.768e-05,2]
[406690139,1772083832487,-390.0,7.768e-05,2]
[406690140,1772083832496,-455.0,7.783e-05,2]
[406690141,1772083832506,-265.0,7.783e-05,2]
[406690142,1772083832519,-310.0,7.799e-05,2]
[406690143,1772083832528,-466.0,7.843e-05,2]
[406690144,1772083832537,-380.0,7.858e-05,2]
[406690145,1772083832547,-901.0,7.912e-05,2]
[406690146,1772083832556,-435.0,7.928e-05,2]
[406690147,1772083832565,-358.89,7.973e-05,2]
[406690148,1772083832575,-166.66,8.047e-05,2]
[406690149,1772083832585,-914.0,8.075e-05,2]
[406690150,1772083832594,-1533.0,8.091e-05,2]
[406690151,1772083832604,-150.0,8.091e-05,2]
[406690152,1772083832614,-358.89,8.221e-05,2]
[406690153,1772083832624,-219.0,8.237e-05,2]
[406690154,1772083832633,-166.66,8.313e-05,2]
[406690155,1772083832643,-2351.0,8.315e-05,2]
[406690156,1772083832653,-7519.13,8.316e-05,2]
[406690157,1772083832663,-478.0,8.401e-05,2]
[406690158,1772083832672,-358.89,8.468e-05,2]
[406690159,1772083832681,-279.0,8.57e-05,2]
[406690160,1772083832690,-500.0,8.573e-05,2]
[406690161,1772083832700,-564.0,8.573e-05,2]
[406690162,1772083832709,-166.66,8.579e-05,2]
[406690163,1772083832718,-358.89,8.716e-05,2]
[406690164,1772083832728,-166.66,8.844e-05,2]
[406690165,1772083832738,-500.0,8.847e-05,2]
[406690166,1772083832747,-267.0,8.897e-05,2]
[406690167,1772083832756,-255.0,8.9e-05,2]
[406690168,1772083832765,-250.0,8.9e-05,2]
[406690169,1772083832775,-339.92107206,8.915e-05,2]
[406690170,1772083832784,-291.0,8.948e-05,2]
[406690171,1772083832793,-358.89,8.963e-05,2]
[406690172,1772083832973,-180.11,9.012e-05,2]
[406690173,1772083832983,-166.66,9.11e-05,2]
[406690174,1772083832992,-503.15080927,9.121e-05,2]
[406690175,1772083833001,-3292.0,9.146e-05,2]
[406690176,1772083833010,-358.89,9.211e-05,2]
[406690177,1772083833020,-166.66,9.376e-05,2]
[406690178,1772083833030,-358.89,9.458e-05,2]
[406690179,1772083833039,-358.89,9.706e-05,2]
[406690180,1772083833048,-153.0,9.79e-05,2]
[406690181,1772083833057,-4133.1798,9.795e-05,2]
[406690182,1772083833067,-89535.6773,9.795e-05,2]
[406690183,1772083833076,-2500.0,9.795e-05,2]
[406690184,1772083833085,-3718.0,9.863e-05,2]
[406690185,1772083833095,-186.55776369,9.894e-05,2]
[406690186,1772083833104,-358.89,9.953e-05,2]
[406690187,1772083833114,-155.485,9.995e-05,2]
[406690188,1772083833123,-500.0,9.995e-05,2]
[406690189,1772083833133,-500.0,9.995e-05,2]
[406690190,1772083833143,-500.0,9.995e-05,2]
[406690191,1772083833152,-500.0,9.995e-05,2]
[406690192,1772083833162,-500.0,9.995e-05,2]
[406690193,1772083833171,-500.0,9.995e-05,2]
[406690194,1772083833180,-576.02643458,9.995e-05,2]
[406690195,1772083833189,-500.0,9.995e-05,2]
[406690196,1772083833198,-500.0,9.995e-05,2]
[406690197,1772083833207,-500.0,9.995e-05,2]
[406690198,1772083833217,-500.0,9.995e-05,2]
[406690199,1772083833230,-500.0,9.995e-05,2]
[406690200,1772083833239,-500.0,9.995e-05,2]
[406690201,1772083833249,-500.0,9.995e-05,2]
[406690202,1772083833258,-500.0,9.995e-05,2]
[406690203,1772083833269,-500.0,9.995e-05,2]
[406690204,1772083833278,-500.0,9.995e-05,2]
[406690205,1772083833289,-500.0,9.995e-05,2]
[406690206,1772083833298,-500.0,9.995e-05,2]
[406690207,1772083833307,-500.0,9.995e-05,2]
[406690208,1772083833318,-500.0,9.995e-05,2]
[406690209,1772083833328,-500.0,9.995e-05,2]
[406690210,1772083833337,-500.0,9.995e-05,2]
[406690211,1772083833347,-500.0,9.995e-05,2]
[406690212,1772083833357,-500.0,9.995e-05,2]
[406690213,1772083833366,-500.0,9.995e-05,2]
[406690214,1772083833376,-500.0,9.995e-05,2]
[406690215,1772083833385,-500.0,9.995e-05,2]
[406690216,1772083833395,-500.0,9.995e-05,2]
[406690217,1772083833404,-500.0,9.995e-05,2]
[406690218,1772083833413,-305.71520655,9.996e-05,2]
[406690219,1772083833423,-32883.6844,9.996e-05,2]
[406690220,1772083833432,-1000.0,9.996e-05,2]
[406690221,1772083833441,-821789.9093,9.996e-05,2]
[406690222,1772083833451,-151.0,0.0001,2]
[406690223,1772083833460,-151.0,0.0001,2]
[406690224,1772083833470,-151.0,0.0001,2]
[406690225,1772083833480,-151.0,0.0001,2]
[406690226,1772083833489,-151.0,0.0001,2]
[406690227,1772083833500,-151.0,0.0001,2]
[406690228,1772083833511,-151.0,0.0001,2]
[406690229,1772083833520,-151.0,0.0001,2]
[406690230,1772083833530,-151.0,0.0001,2]
[406690231,1772083833540,-151.0,0.0001,2]
[406690232,1772083833550,-151.0,0.0001,2]
[406690233,1772083833559,-153.4251829,0.0001,2]
[406690234,1772083833569,-4077.0,0.00010061,2]
[406690235,1772083833578,-358.89,0.00010201,2]
[406690236,1772083833587,-500.0,0.000103,2]
[406690237,1772083833596,-500.0,0.000103,2]
[406690238,1772083833605,-500.0,0.000103,2]
[406690239,1772083833615,-500.0,0.000103,2]
[406690240,1772083833627,-500.0,0.000103,2]
[406690241,1772083833636,-700.0,0.000103,2]
[406690242,1772083833646,-515.09383157,0.000103,2]
[406690243,1772083833656,-500.0,0.000103,2]
[406690244,1772083833665,-500.0,0.000103,2]
[406690245,1772083833675,-500.0,0.000103,2]
[406690246,1772083833685,-643.7180745,0.000103,2]
[406690247,1772083833695,-500.0,0.000103,2]
[406690248,1772083833704,-670.58826538,0.000103,2]
[406690249,1772083833714,-500.0,0.000103,2]
[406690250,1772083833723,-29748.84,0.00010413,2]
[406690251,1772083833733,-358.89,0.00010448,2]
[406690252,1772083833742,-150.99,0.00010475,2]
[406690253,1772083833751,-9999.99,0.00010475,2]
[406690254,1772083833761,-299.99,0.00010475,2]
[406690255,1772083833770,-9999.99,0.00010475,2]